bitfinex-derivatives/quotes_BNBF0:USTF0_20250904
["timestamp","ask_amount","ask_price","bid_price","bid_amount"]
[1756990178292,0.7240002,848.24,847.65,0.79342872]
[1756990178492,0.7240002,848.23,847.65,0.79342872]
[1756990178692,0.7240002,848.22,847.66,0.79342872]
[1756990178892,0.7240002,848.21,847.66,0.79342872]
[1756990179096,0.7240002,848.2,847.66,0.79342872]
[1756990179294,0.20513546,848.36,847.66,0.79342872]
[1756990181596,0.92906893,848.36,847.66,0.79342872]
[1756990183195,0.79450744,848.34,847.67,0.79342872]
[1756990183402,0.72393347,848.33,847.65,0.79342872]
[1756990183596,0.20513546,848.36,847.65,0.79342872]
[1756990183597,0.72393347,848.32,847.65,0.79342872]
[1756990183796,0.72393347,848.31,847.65,0.79342872]
[1756990184100,0.72393347,848.3,847.66,0.79342872]
[1756990184296,0.72393347,848.29,847.66,0.79342872]
[1756990184501,0.72393347,848.28,847.66,0.79342872]
[1756990184701,0.72393347,848.28,847.45,1.0607609]
[1756990184702,0.72393347,848.27,847.67,0.79342872]
[1756990184902,0.72393347,848.26,847.67,0.79342872]
[1756990185103,0.72393347,848.25,847.67,0.79342872]
[1756990185298,0.72393347,848.24,847.67,0.79342872]
[1756990185502,0.72393347,848.23,847.67,0.79342872]
[1756990185705,0.72393347,848.22,847.67,0.79342872]
[1756990185901,0.20513546,848.36,847.67,0.79342872]
[1756990188212,0.9996429,848.36,847.68,0.79342872]
[1756990188513,0.72385331,848.35,847.68,0.79342872]
[1756990188908,1.51836075,848.35,847.69,0.79342872]
[1756990189209,0.72385331,848.34,847.69,0.79342872]
[1756990192413,0.72385331,848.33,847.69,0.79342872]
[1756990192617,0.72385331,848.32,847.7,0.79342872]
[1756990192818,0.72385331,848.31,847.7,0.79342872]
[1756990193018,0.72385331,848.3,847.7,0.79342872]
[1756990193318,0.72385331,848.29,847.73,0.79342872]
[1756990193619,0.72385331,848.28,847.73,0.79342872]
[1756990193817,0.72385331,848.27,847.73,0.79342872]
[1756990194014,0.72385331,848.26,847.72,0.79342872]
[1756990194214,0.72385331,848.25,847.72,0.79342872]
[1756990194512,0.72385331,848.24,847.73,0.79342872]
[1756990194714,0.72385331,848.23,847.73,0.79342872]
[1756990194918,0.72385331,848.22,847.73,0.79342872]
[1756990195114,0.72385331,848.21,847.73,0.79342872]
[1756990195317,0.72385331,848.2,847.73,0.79342872]
[1756990195519,0.79450744,848.32,847.73,0.79342872]
[1756990195716,0.72425059,848.31,847.73,0.79342872]
[1756990196421,1.51875803,848.31,847.73,0.79342872]
[1756990196621,0.72425059,848.3,847.73,0.79342872]
[1756990197722,0.72425059,848.29,847.73,0.79342872]
[1756990197917,0.72425059,848.28,847.73,0.79342872]
[1756990198118,0.72425059,848.27,847.73,0.79342872]
[1756990198318,0.72425059,848.26,847.74,0.79342872]
[1756990198620,0.72425059,848.25,847.74,0.79342872]
[1756990198821,0.72425059,848.24,847.74,0.79342872]
[1756990199019,0.72425059,848.23,847.74,0.79342872]
[1756990199221,0.72425059,848.22,847.74,0.79342872]
[1756990199419,0.72425059,848.21,847.74,0.79342872]
[1756990199622,0.72425059,848.2,847.74,0.79342872]
[1756990199922,0.72425059,848.19,847.74,0.79342872]
[1756990200221,0.79450744,848.3,847.74,0.79342872]
[1756990200418,0.7242956,848.29,847.74,0.79342872]
[1756990200818,0.7242956,848.29,847.73,0.79342872]
[1756990201122,0.7242956,848.28,847.73,0.79342872]
[1756990201321,0.7242956,848.27,847.72,0.79342872]
[1756990201622,0.7242956,848.26,847.72,0.79342872]
[1756990201821,0.7242956,848.25,847.72,0.79342872]
[1756990202020,0.7242956,848.24,847.72,0.79342872]
[1756990202221,0.7242956,848.23,847.72,0.79342872]
[1756990202415,0.7242956,848.22,847.72,0.79342872]
[1756990202620,0.7242956,848.21,847.72,0.79342872]
[1756990202818,0.7242956,848.2,847.72,0.79342872]
[1756990203016,0.79450744,848.33,847.72,0.79342872]
[1756990203218,1.51881713,848.32,847.72,0.79342872]
[1756990203418,0.72430969,848.31,847.72,0.79342872]
[1756990203918,0.72430969,848.3,847.72,0.79342872]
[1756990204117,0.72430969,848.29,847.72,0.79342872]
[1756990204320,0.72430969,848.28,847.72,0.79342872]
[1756990204524,0.72430969,848.27,847.72,0.79342872]
[1756990204724,0.72430969,848.26,847.72,0.79342872]
[1756990204923,0.72430969,848.25,847.72,0.79342872]
[1756990205124,0.72430969,848.24,847.72,0.79342872]
[1756990205421,0.72430969,848.23,847.72,0.79342872]
[1756990205721,0.72430969,848.22,847.71,0.79342872]
[1756990205924,0.72430969,848.21,847.71,0.79342872]
[1756990206125,0.72430969,848.2,847.71,0.79342872]
[1756990206326,0.79450744,848.35,847.7,0.79342872]
[1756990206623,0.72435582,848.34,847.7,0.79342872]
[1756990207026,0.79450744,848.33,847.72,0.79342872]
[1756990207326,0.72435582,848.32,847.72,0.79342872]
[1756990210726,0.72435582,848.32,846.28,3.6949463]
[1756990210727,0.72435582,848.32,847.74,0.79342872]
[1756990210927,0.72435582,848.31,847.74,0.79342872]
[1756990211126,0.72435582,848.3,847.74,0.79342872]
[1756990211426,0.72435582,848.29,847.74,0.79342872]
[1756990211627,0.72435582,848.28,847.74,0.79342872]
[1756990211822,0.72435582,848.27,847.74,0.79342872]
[1756990212025,0.20513546,848.36,847.74,0.79342872]
[1756990212026,0.72435582,848.26,847.74,0.79342872]
[1756990212222,0.20513546,848.36,847.74,0.79342872]
[1756990218632,0.20513546,848.36,847.75,0.79342872]
[1756990219639,0.20513546,848.36,847.73,0.79342872]
[1756990220639,0.79450744,848.35,847.77,0.79342872]
[1756990220835,0.72459752,848.34,847.77,0.79342872]
[1756990223238,1.51910496,848.34,847.77,0.79342872]
[1756990223535,0.72459752,848.33,847.77,0.79342872]
[1756990224034,0.72459752,848.33,846.71,2.6392474]
[1756990224035,0.79450744,848.3,847.8,0.79342872]
[1756990224233,0.72459752,848.29,847.8,0.79342872]
[1756990225238,0.79450744,848.3,847.8,0.79342872]
[1756990228941,0.79450744,848.29,847.81,0.79342872]
[1756990229142,0.72457796,848.28,847.81,0.79342872]
[1756990229741,1.5190854,848.28,847.81,0.79342872]
[1756990229941,0.72457796,848.27,847.81,0.79342872]
[1756990231642,0.72457796,848.27,847.86,0.79342872]
[1756990231841,0.72457796,848.26,847.86,0.79342872]
[1756990232141,0.72457796,848.25,847.86,0.79342872]
[1756990232339,0.72457796,848.24,847.86,0.79342872]
[1756990232553,0.9996429,848.36,847.84,0.79342872]
[1756990232741,0.72458003,848.35,847.84,0.79342872]
[1756990234839,0.72458003,848.35,847.86,0.79342872]
[1756990235139,0.72458003,848.34,847.86,0.79342872]
[1756990235342,0.72458003,848.33,847.86,0.79342872]
[1756990235543,0.72458003,848.32,847.86,0.79342872]
[1756990235840,0.72458003,848.31,847.86,0.79342872]
[1756990236043,0.72458003,848.3,847.86,0.79342872]
[1756990236238,0.20513546,848.36,847.86,0.79342872]
[1756990236239,0.72458003,848.29,847.86,0.79342872]
[1756990236439,0.72458003,848.28,847.86,0.79342872]
[1756990236639,0.20513546,848.36,847.86,0.79342872]
[1756990237239,0.20513546,848.36,847.85,0.79342872]
[1756990238444,0.20513546,848.36,846.94,2.6392474]
[1756990238445,0.20513546,848.36,847.74,0.79342872]
[1756990238642,0.20513546,848.36,847.8,0.79342872]
[1756990238846,0.20513546,848.36,847.81,0.79342872]
[1756990239247,0.20513546,848.36,847.8,0.79342872]
[1756990240247,0.20513546,848.36,847.79,0.79342872]
[1756990242345,0.20513546,848.36,847.78,0.79342872]
[1756990245449,0.20513546,848.36,847.77,0.79342872]
[1756990248449,0.20513546,848.36,846.75,0.20514695]
[1756990248450,0.20513546,848.36,847.86,0.79342872]
[1756990251650,0.20513546,848.36,847.81,0.79342872]
[1756990253355,0.20513546,848.36,847.8,0.79342872]
[1756990254253,0.20513546,848.36,847.81,0.79342872]
[1756990254953,0.20513546,848.36,847.83,0.79342872]
[1756990255356,0.20513546,848.36,847.82,0.79342872]
[1756990261460,0.20513546,848.36,847.85,0.79342872]
[1756990262563,0.20513546,848.36,847.87,0.79342872]
[1756990262856,0.20513546,848.36,847.71,1.0607609]
[1756990262857,0.20513546,848.36,847.84,0.79342872]
[1756990263358,0.20513546,848.36,847.83,0.79342872]
[1756990263556,0.20513546,848.36,847.8,0.79342872]
[1756990265061,0.20513546,848.36,847.76,0.79342872]
[1756990266358,0.20513546,848.36,847.75,0.79342872]
[1756990266564,0.79450744,848.33,847.74,0.79342872]
[1756990266759,1.51831236,848.32,847.67,0.79342872]
[1756990266959,0.72380492,848.31,847.67,0.79342872]
[1756990268665,0.72380492,848.31,847.64,0.79342872]
[1756990268961,0.72380492,848.3,847.6,0.79342872]
[1756990269161,0.72380492,848.29,847.6,0.79342872]
[1756990269361,0.72380492,848.28,847.6,0.79342872]
[1756990269565,0.72380492,848.27,847.6,0.79342872]
[1756990269867,0.72380492,848.26,847.6,0.79342872]
[1756990270068,0.72380492,848.25,847.6,0.79342872]
[1756990270268,0.72380492,848.24,847.6,0.79342872]
[1756990270570,0.72380492,848.23,847.59,0.79342872]
[1756990270770,0.72380492,848.22,847.59,0.79342872]
[1756990270967,0.72380492,848.21,847.59,0.79342872]
[1756990271169,0.20513546,848.36,847.59,0.79342872]
[1756990272568,0.92881029,848.36,847.59,0.79342872]
[1756990273568,0.72367483,848.35,847.59,0.79342872]
[1756990273767,0.72367483,848.34,847.59,0.79342872]
[1756990273966,0.72367483,848.33,847.59,0.79342872]
[1756990274167,0.72367483,848.32,847.59,0.79342872]
[1756990274471,0.72367483,848.31,847.58,0.79342872]
[1756990274669,0.20513546,848.36,847.58,0.79342872]
[1756990274670,0.72367483,848.3,847.58,0.79342872]
[1756990274870,0.72367483,848.29,847.58,0.79342872]
[1756990275071,0.72367483,848.28,847.58,0.79342872]
[1756990275266,0.72367483,848.27,847.58,0.79342872]
[1756990275472,0.72367483,848.26,847.58,0.79342872]
[1756990275668,0.72342662,848.25,847.58,0.79342872]
[1756990275872,0.72342662,848.24,847.58,0.79342872]
[1756990276074,0.72342662,848.23,847.6,0.79342872]
[1756990276274,0.72342662,848.22,847.6,0.79342872]
[1756990276573,0.72342662,848.21,847.6,0.79342872]
[1756990276773,0.79450744,848.35,847.6,0.79342872]
[1756990276971,0.7233719,848.34,847.6,0.79342872]
[1756990277669,0.72331944,848.33,847.6,0.79342872]
[1756990277870,0.72331944,848.32,847.6,0.79342872]
[1756990278070,0.72331944,848.31,847.6,0.79342872]
[1756990278269,0.72331944,848.3,847.6,0.79342872]
[1756990278472,0.72331944,848.29,847.6,0.79342872]
[1756990278672,0.72331944,848.28,847.61,0.79342872]
[1756990278973,0.72331944,848.27,847.61,0.79342872]
[1756990279175,0.72286812,848.26,847.61,0.79342872]
[1756990279371,0.72286812,848.25,847.6,0.79342872]
[1756990279574,0.72286812,848.24,847.6,0.79342872]
[1756990279774,0.72286812,848.23,847.6,0.79342872]
[1756990279974,0.72286812,848.22,847.62,0.79342872]
[1756990280175,0.72286812,848.21,847.62,0.79342872]
[1756990280372,0.79450744,848.32,847.62,0.79342872]
[1756990280573,0.72277833,848.31,847.62,0.79342872]
[1756990280773,1.51728577,848.31,847.62,0.79342872]
[1756990280970,0.72277833,848.3,847.62,0.79342872]
[1756990281275,0.72277833,848.3,847.63,0.79342872]
[1756990281576,1.51728577,848.3,847.62,0.79342872]
[1756990281771,0.72277833,848.29,847.62,0.79342872]
[1756990283376,0.72277833,848.29,847.63,0.79342872]
[1756990283577,0.72277833,848.28,847.63,0.79342872]
[1756990283777,0.72277833,848.27,847.64,0.79342872]
[1756990283978,0.72277833,848.26,847.64,0.79342872]
[1756990284179,0.72277833,848.25,847.64,0.79342872]
[1756990284380,0.72277833,848.24,847.64,0.79342872]
[1756990284577,0.72277833,848.23,847.64,0.79342872]
[1756990284876,0.79450744,848.32,847.64,0.79342872]
[1756990285084,0.72265285,848.31,847.64,0.79342872]
[1756990285876,0.72265285,848.31,847.7,0.79342872]
[1756990286176,0.20513546,848.36,847.7,0.79342872]
[1756990286575,0.20513546,848.36,847.69,0.79342872]
[1756990286775,0.20513546,848.36,847.72,0.79342872]
[1756990286980,0.20513546,848.36,847.74,0.79342872]
[1756990288378,0.20513546,848.36,847.75,0.79342872]
[1756990288981,0.92794077,848.36,847.75,0.79342872]
[1756990289185,0.72280531,848.35,847.75,0.79342872]
[1756990289383,0.20513546,848.36,847.75,0.79342872]
[1756990289687,0.20513546,848.36,847.76,0.79342872]
[1756990290688,0.20513546,848.36,847.79,0.79342872]
[1756990292493,0.20513546,848.36,847.8,0.79342872]
[1756990292687,0.20513546,848.36,847.87,0.79342872]
[1756990293390,0.20513546,848.36,847.86,0.79342872]
[1756990294994,0.20513546,848.36,847.85,0.79342872]
[1756990295989,0.20513546,848.36,847.86,0.79342872]
[1756990296189,0.20513546,848.36,846.75,0.20514695]
[1756990296190,0.20513546,848.36,847.85,0.79342872]
[1756990298293,0.20513546,848.36,847.84,0.79342872]
[1756990302393,0.20513546,848.36,847.85,0.79342872]
[1756990303498,0.20513546,848.36,847.68,1.0607609]
[1756990303701,0.20513546,848.36,847.85,0.79241745]
[1756990304397,0.20513546,848.36,847.84,0.79241745]
[1756990304996,0.20513546,848.36,847.85,0.79241745]
[1756990305596,0.20513546,848.36,847.84,0.79241745]
[1756990306201,0.20513546,848.36,847.85,0.79241745]
[1756990307596,0.20513546,848.36,847.84,0.79241745]
[1756990308099,0.20513546,848.36,847.86,0.79241745]
[1756990308597,0.20513546,848.36,847.85,0.79241745]
[1756990309302,0.72236037,848.56,847.85,0.79241745]
[1756990309601,0.205101,848.48,847.8,0.79241745]
[1756990313403,0.205101,848.48,847.79,0.79241745]
[1756990313602,0.205101,848.48,847.78,0.79241745]
[1756990318710,0.205101,848.48,847.76,0.79241745]
[1756990319608,0.205101,848.48,847.78,0.79241745]
[1756990323814,0.205101,848.48,847.75,0.79241745]
[1756990324519,0.205101,848.48,847.74,0.79241745]
[1756990324717,0.205101,848.48,847.65,0.79241745]
[1756990324919,0.205101,848.48,846.75,0.20514695]
[1756990324920,0.205101,848.48,847.66,0.79241745]
[1756990325120,0.205101,848.48,847.67,0.79241745]
[1756990325316,0.205101,848.48,847.66,0.79241745]
[1756990326228,0.205101,848.48,847.67,0.79241745]
[1756990328530,0.205101,848.48,847.68,0.79241745]
[1756990328731,0.205101,848.48,847.66,0.79241745]
[1756990328930,0.205101,848.48,847.67,0.79241745]
[1756990330230,0.205101,848.48,847.68,0.79241745]
[1756990332432,0.205101,848.48,847.69,0.79241745]
[1756990333533,0.205101,848.48,847.7,0.79241745]
[1756990334628,0.205101,848.48,847.72,0.79241745]
[1756990335331,0.205101,848.48,847.71,0.79241745]
[1756990335734,0.92795427,848.48,847.71,0.79241745]
[1756990335931,0.72285327,848.47,847.71,0.79241745]
[1756990336135,0.72285327,848.46,847.71,0.79241745]
[1756990336431,0.72285327,848.45,847.72,0.79241745]
[1756990336635,0.72285327,848.44,847.72,0.79241745]
[1756990336831,0.72285327,848.43,847.72,0.79241745]
[1756990337032,0.72285327,848.42,847.72,0.79241745]
[1756990337236,0.205101,848.48,847.74,0.79241745]
[1756990337432,0.205101,848.48,846.75,0.20514695]
[1756990337433,0.205101,848.48,847.77,0.79241745]
[1756990338634,0.205101,848.48,847.79,0.79241745]
[1756990338935,0.205101,848.48,847.8,0.79241745]
[1756990339639,0.9282073,848.48,847.8,0.79241745]
[1756990339834,0.7231063,848.47,847.81,0.79241745]
[1756990340032,0.7231063,848.46,847.81,0.79241745]
[1756990340235,0.7231063,848.45,847.81,0.79241745]
[1756990340536,0.7231063,848.44,847.82,0.79241745]
[1756990340737,0.7231063,848.43,847.82,0.79241745]
[1756990340933,0.7231063,848.42,847.82,0.79241745]
[1756990341136,0.205101,848.48,847.82,0.79241745]
[1756990342138,0.205101,848.48,847.83,0.79241745]
[1756990343335,0.205101,848.48,847.84,0.79241745]
[1756990344340,0.205101,848.48,847.85,0.79241745]
[1756990345040,0.205101,848.48,847.87,0.79241745]
[1756990345236,0.92905285,848.48,847.87,0.79241745]
[1756990345541,0.72409853,848.47,847.87,0.79241745]
[1756990345936,0.72409853,848.46,847.87,0.79241745]
[1756990346141,0.72409858,848.45,847.87,0.79241745]
[1756990346335,0.72409858,848.44,847.87,0.79241745]
[1756990346542,0.72409858,848.43,847.87,0.79241745]
[1756990346739,0.72409858,848.42,847.87,0.79241745]
[1756990346937,0.72409858,848.41,847.88,0.79241745]
[1756990347141,0.72409858,848.4,847.88,0.79241745]
[1756990347340,0.72409858,848.39,847.88,0.79241745]
[1756990347542,0.205101,848.48,847.94,0.79241745]
[1756990348245,0.205101,848.48,847.95,0.79241745]
[1756990350246,0.205101,848.48,847.92,0.79241745]
[1756990352049,0.205101,848.48,847.91,0.79241745]
[1756990353350,0.92939844,848.48,847.92,0.79241745]
[1756990353552,0.72429744,848.47,847.92,0.79241745]
[1756990353848,0.72429744,848.46,847.92,0.79241745]
[1756990354053,0.205101,848.48,847.92,0.79241745]
[1756990357056,0.205101,848.48,847.91,0.79241745]
[1756990358355,0.205101,848.48,847.9,0.79241745]
[1756990360057,0.205101,848.48,847.92,0.79241745]
[1756990361769,0.205101,848.48,847.93,0.79241745]
[1756990363060,0.205101,848.48,847.94,0.79241745]
[1756990363758,0.92932708,848.48,847.94,0.79241745]
[1756990364060,0.72422608,848.47,847.94,0.79241745]
[1756990364257,0.72422608,848.46,847.94,0.79241745]
[1756990364564,0.72422608,848.45,847.94,0.79241745]
[1756990364761,0.205101,848.48,847.93,0.79241745]
[1756990365560,0.205101,848.48,847.94,0.79241745]
[1756990366560,0.205101,848.48,847.93,0.79241745]
[1756990366963,0.205101,848.48,847.94,0.79241745]
[1756990368258,0.205101,848.48,847.95,0.79241745]
[1756990369063,0.92929062,848.48,847.95,0.79241745]
[1756990369273,0.72418962,848.47,847.95,0.79241745]
[1756990369464,0.72418962,848.46,847.95,0.79241745]
[1756990369660,0.72418962,848.45,847.95,0.79241745]
[1756990369865,0.205101,848.48,847.95,0.79241745]
[1756990370064,0.205101,848.48,847.92,0.79241745]
[1756990373966,0.205101,848.48,847.89,0.79241745]
[1756990378079,0.205101,848.48,847.9,0.79241745]
[1756990378572,0.205101,848.48,847.89,0.79241745]
[1756990378769,0.205101,848.48,847.87,0.79241745]
[1756990379878,0.205101,848.48,847.89,0.79241745]
[1756990381179,0.205101,848.48,847.88,0.79241745]
[1756990381376,0.205101,848.48,847.89,0.79241745]
[1756990382076,0.205101,848.48,847.7,1.0607609]
[1756990382077,0.205101,848.48,847.88,0.79241745]
[1756990382280,0.205101,848.48,847.89,0.79241745]
[1756990382782,0.205101,848.48,847.87,0.79241745]
[1756990383082,0.205101,848.48,847.89,0.79241745]
[1756990383885,0.205101,848.48,847.87,0.79241745]
[1756990386485,0.205101,848.48,847.86,0.79241745]
[1756990387184,0.205101,848.48,847.88,0.79241745]
[1756990387686,0.205101,848.48,847.87,0.79241745]
[1756990388786,0.205101,848.48,847.88,0.79241745]
[1756990389082,0.205101,848.48,847.87,0.79241745]
[1756990389785,0.92920837,848.48,847.87,0.79241745]
[1756990389987,0.72410737,848.47,847.87,0.79241745]
[1756990390187,0.72410737,848.46,847.87,0.79241745]
[1756990390388,0.72410737,848.45,847.87,0.79241745]
[1756990390688,0.205101,848.48,847.87,0.79241745]
[1756990391189,0.205101,848.48,847.88,0.79241745]
[1756990391889,0.205101,848.48,847.86,0.79241745]
[1756990392089,0.205101,848.48,847.63,1.0607609]
[1756990392090,0.205101,848.48,847.87,0.79241745]
[1756990393085,0.205101,848.48,847.85,0.79241745]
[1756990393301,0.205101,848.48,847.86,0.79241745]
[1756990393686,0.205101,848.48,847.87,0.79241745]
[1756990394786,0.9294648,848.48,847.88,0.79241745]
[1756990394989,0.7243638,848.47,847.88,0.79241745]
[1756990395190,0.7243638,848.46,847.88,0.79241745]
[1756990395390,0.205101,848.48,847.88,0.79241745]
[1756990395391,0.7243638,848.45,847.88,0.79241745]
[1756990395688,0.7243638,848.44,847.88,0.79241745]
[1756990395989,0.7243638,848.43,847.88,0.79241745]
[1756990396191,0.7243638,848.42,847.88,0.79241745]
[1756990396490,0.7243638,848.41,847.89,0.79241745]
[1756990396690,0.205101,848.48,847.89,0.79241745]
[1756990398391,0.205101,848.48,847.9,0.79241745]
[1756990398789,0.205101,848.48,847.91,0.79241745]
[1756990398991,0.92986403,848.48,847.91,0.79241745]
[1756990399189,0.72476303,848.47,847.91,0.79241745]
[1756990399389,0.72476303,848.46,847.91,0.79241745]
[1756990399591,0.72476303,848.45,847.91,0.79241745]
[1756990399802,0.72476303,848.44,847.91,0.79241745]
[1756990400093,0.72476303,848.43,847.91,0.79241745]
[1756990400392,0.72476303,848.42,847.91,0.79241745]
[1756990400590,0.205101,848.48,847.91,0.79241745]
[1756990400591,0.72476303,848.41,847.91,0.79241745]
[1756990400793,0.72476303,848.4,847.91,0.79241745]
[1756990400990,0.72476303,848.39,847.91,0.79241745]
[1756990401195,0.205101,848.48,847.91,0.79241745]
[1756990401791,0.205101,848.48,847.94,0.79241745]
[1756990401996,0.205101,848.48,847.95,0.79241745]
[1756990402295,0.92934212,848.48,847.95,0.79241745]
[1756990402893,0.92934212,848.48,847.96,0.79241745]
[1756990403095,1.72199224,848.48,847.96,0.79241745]
[1756990403294,0.72424112,848.47,847.96,0.79241745]
[1756990403492,1.51689124,848.47,847.96,0.79241745]
[1756990403694,0.72424112,848.46,847.96,0.79241745]
[1756990403894,0.72424112,848.45,847.96,0.79241745]
[1756990404097,0.72424112,848.44,847.96,0.79241745]
[1756990404297,0.72424112,848.43,847.96,0.79241745]
[1756990404599,0.72424112,848.42,847.96,0.79241745]
[1756990404799,0.72424112,848.41,847.96,0.79241745]
[1756990404995,0.72424112,848.4,847.96,0.79241745]
[1756990405193,0.72424112,848.39,847.96,0.79241745]
[1756990405395,0.72424112,848.38,847.96,0.79241745]
[1756990405695,0.72424112,848.37,847.96,0.79241745]
[1756990405894,0.72424112,848.36,847.96,0.79241745]
[1756990406094,0.99775112,848.48,847.96,0.79241745]
[1756990406296,0.72436131,848.47,847.96,0.79241745]
[1756990406699,0.72436131,848.47,847.93,0.79241745]
[1756990406905,0.72436131,848.46,847.93,0.79241745]
[1756990407197,0.72436131,848.45,847.93,0.79241745]
[1756990407398,0.72436131,848.44,847.93,0.79241745]
[1756990407598,0.72436131,848.43,847.93,0.79241745]
[1756990407795,0.72436131,848.42,847.93,0.79241745]
[1756990407997,0.72436131,848.41,847.93,0.79241745]
[1756990408206,0.72436131,848.4,847.93,0.79241745]
[1756990408501,0.72436131,848.39,847.93,0.79241745]
[1756990408697,0.72436131,848.38,847.93,0.79241745]
[1756990408900,0.205101,848.48,847.93,0.79241745]
[1756990415799,0.92953438,848.48,847.93,0.79241745]
[1756990416005,0.72443338,848.47,847.93,0.79241745]
[1756990416201,0.72443338,848.46,847.93,0.79241745]
[1756990416504,0.72443338,848.45,847.93,0.79241745]
[1756990416707,0.72443338,848.44,847.95,0.79241745]
[1756990416902,0.72443338,848.43,847.94,0.79241745]
[1756990417205,0.72443338,848.42,847.94,0.79241745]
[1756990417405,0.72443338,848.41,847.94,0.79241745]
[1756990417603,0.72443338,848.4,847.94,0.79241745]
[1756990417807,0.72443338,848.39,847.94,0.79241745]
[1756990418102,0.205101,848.48,847.94,0.79241745]
[1756990418103,0.72443338,848.38,847.94,0.79241745]
[1756990418306,0.72443338,848.37,847.94,0.79241745]
[1756990418505,0.205101,848.48,847.94,0.79241745]
[1756990422106,0.205101,848.48,847.95,0.79241745]
[1756990424610,0.205101,848.48,847.96,0.79241745]
[1756990424815,0.92952059,848.48,847.96,0.79241745]
[1756990425313,0.92952059,848.48,847.94,0.79241745]
[1756990425611,0.72441959,848.47,847.95,0.79241745]
[1756990425812,0.72441959,848.46,847.94,0.79241745]
[1756990426010,0.72441959,848.45,847.94,0.79241745]
[1756990426213,0.72441959,848.44,847.94,0.79241745]
[1756990426410,0.72441959,848.43,847.94,0.79241745]
[1756990426610,0.72441959,848.42,847.94,0.79241745]
[1756990426814,0.72441959,848.41,847.95,0.79241745]
[1756990427110,0.72441959,848.4,847.95,0.79241745]
[1756990427313,0.72441959,848.39,847.95,0.79241745]
[1756990427516,0.72441959,848.38,847.95,0.79241745]
[1756990427712,0.72441959,848.37,847.95,0.79241745]
[1756990428014,0.72441959,848.36,847.95,0.79241745]
[1756990428215,0.205101,848.48,847.95,0.79241745]
[1756990429013,0.205101,848.48,847.96,0.79241745]
[1756990429712,0.92959148,848.48,847.96,0.79241745]
[1756990435221,0.79265012,848.46,847.98,0.79241745]
[1756990435421,1.5171406,848.45,847.98,0.79241745]
[1756990435618,1.5171406,848.44,847.99,0.79241745]
[1756990435920,0.72449048,848.43,847.99,0.79241745]
[1756990437421,1.5171406,848.43,848.0,0.79241745]
[1756990437620,0.72449048,848.42,848.0,0.79241745]
[1756990440918,1.5171406,848.42,848.0,0.79241745]
[1756990441120,0.72449048,848.41,848.0,0.79241745]
[1756990442721,0.72449048,848.41,848.01,0.79241745]
[1756990445424,1.5171406,848.41,848.0,0.79241745]
[1756990445720,0.72449048,848.4,847.99,0.79241745]
[1756990447122,1.5171406,848.4,847.99,0.79241745]
[1756990447323,0.72449048,848.39,847.85,0.79241745]
[1756990447621,0.72449048,848.38,847.85,0.79241745]
[1756990447825,0.72449048,848.37,847.85,0.79241745]
[1756990448022,0.72449048,848.36,847.85,0.79241745]
[1756990448232,0.72449048,848.35,847.84,0.79241745]
[1756990448528,0.72449048,848.34,847.84,0.79241745]
[1756990448728,0.72449048,848.33,847.84,0.79241745]
[1756990448925,0.72449048,848.32,847.84,0.79241745]
[1756990449124,0.72449048,848.31,847.82,0.79241745]
[1756990449330,0.72449048,848.3,847.82,0.79241745]
[1756990449530,0.99775112,848.48,847.82,0.79241745]
[1756990449829,0.72461459,848.47,847.82,0.79241745]
[1756990450230,0.72461459,848.47,847.81,0.79241745]
[1756990451733,0.7244846,848.46,847.81,0.79241745]
[1756990451930,0.7244846,848.45,847.81,0.79241745]
[1756990452131,0.7244846,848.44,847.81,0.79241745]
[1756990452332,0.7244846,848.43,847.8,0.79241745]
[1756990452534,0.7244846,848.42,847.8,0.79241745]
[1756990452737,0.7244846,848.41,847.8,0.79241745]
[1756990452936,0.7244846,848.4,847.79,0.79241745]
[1756990453136,0.7244846,848.39,847.79,0.79241745]
[1756990453336,0.7244846,848.38,847.79,0.79241745]
[1756990453534,0.7244846,848.37,847.79,0.79241745]
[1756990453740,0.7244846,848.36,847.79,0.79241745]
[1756990453939,0.7244846,848.35,847.79,0.79241745]
[1756990454136,0.7244846,848.34,847.79,0.79241745]
[1756990454339,0.7244846,848.33,847.79,0.79241745]
[1756990454540,0.7244846,848.32,847.79,0.79241745]
[1756990454740,0.7244846,848.31,847.79,0.79241745]
[1756990454939,0.205101,848.48,847.79,0.79241745]
[1756990455137,1.72205458,848.48,847.79,0.79241745]
[1756990455341,0.72430346,848.47,847.79,0.79241745]
[1756990458441,0.99775112,848.48,847.79,0.79241745]
[1756990458645,0.72404809,848.47,847.79,0.79241745]
[1756990458843,0.79265012,848.46,847.81,0.79241745]
[1756990459049,0.72404809,848.45,847.78,0.79241745]
[1756990459342,0.72404809,848.44,847.78,0.79241745]
[1756990459543,0.72404809,848.43,847.78,0.79241745]
[1756990459741,0.72404809,848.42,847.78,0.79241745]
[1756990459955,0.72404809,848.41,847.78,0.79241745]
[1756990460241,0.72404809,848.4,847.78,0.79241745]
[1756990460441,0.72404809,848.39,847.78,0.79241745]
[1756990460642,0.72404809,848.38,847.78,0.79241745]
[1756990460846,0.72404809,848.37,847.78,0.79241745]